[Event "*** SCC Grand Prix: Titled Tuesday Blitz"]
[Site "Chess.com"]
[Date "2020.07.21"]
[Round "9"]
[White "swimmerchess"]
[Black "bugsbunny444"]
[Result "1-0"]
[WhiteElo "2808"]
[BlackElo "2592"]
[TimeControl "180+1"]
[EndTime "11:47:24 PDT"]
[Termination "swimmerchess won by resignation"]

1. e4 {[%clk 0:03:00.9]} 1... c5 {[%clk 0:02:58.5]} 2. Nf3 {[%clk 0:03:00.9]}
2... e6 {[%clk 0:02:58.5]} 3. d4 {[%clk 0:03:01.8]} 3... cxd4 {[%clk 0:02:58.4]}
4. Nxd4 {[%clk 0:03:02.7]} 4... a6 {[%clk 0:02:58.8]} 5. Nc3 {[%clk 0:03:01.7]}
5... Qc7 {[%clk 0:02:58.7]} 6. Bd3 {[%clk 0:03:00.9]} 6... Nf6 {[%clk
0:02:57.9]} 7. O-O {[%clk 0:03:00.1]} 7... Bc5 {[%clk 0:02:58.4]} 8. Nb3 {[%clk
0:02:55.3]} 8... Be7 {[%clk 0:02:59]} 9. Kh1 {[%clk 0:02:54.7]} 9... d6 {[%clk
0:02:59.4]} 10. f4 {[%clk 0:02:53.6]} 10... Nbd7 {[%clk 0:02:59.9]} 11. Qf3
{[%clk 0:02:53.4]} 11... b5 {[%clk 0:03:00.3]} 12. a3 {[%clk 0:02:52.4]} 12...
Bb7 {[%clk 0:03:00.5]} 13. Be3 {[%clk 0:02:51.3]} 13... Nc5 {[%clk 0:02:52.3]}
14. Rae1 {[%clk 0:02:49.2]} 14... O-O {[%clk 0:02:46.9]} 15. Qh3 {[%clk
0:02:47]} 15... Ncxe4 {[%clk 0:02:31]} 16. Bd4 {[%clk 0:02:38.2]} 16... d5
{[%clk 0:02:01.1]} 17. Nd2 {[%clk 0:02:31]} 17... Rfd8 {[%clk 0:01:14.3]} 18.
Nf3 {[%clk 0:02:03.6]} 18... h6 {[%clk 0:01:04.5]} 19. Ne5 {[%clk 0:01:55.9]}
19... Bc5 {[%clk 0:00:58.2]} 20. Ne2 {[%clk 0:01:51.5]} 20... Nd2 {[%clk
0:00:52.2]} 21. Rg1 {[%clk 0:01:42.3]} 21... Nfe4 {[%clk 0:00:47]} 22. Qe3
{[%clk 0:01:38.7]} 22... Rac8 {[%clk 0:00:21.3]} 23. g4 {[%clk 0:01:31.9]} 23...
Nc4 {[%clk 0:00:13.7]} 24. Qf3 {[%clk 0:01:32]} 24... Bxd4 {[%clk 0:00:09.1]}
25. Nxd4 {[%clk 0:01:32.9]} 25... Nxb2 {[%clk 0:00:09.2]} 26. g5 {[%clk
0:01:31.3]} 26... hxg5 {[%clk 0:00:09.6]} 27. h4 {[%clk 0:01:22]} 27... gxf4
{[%clk 0:00:08.5]} 28. Qxf4 {[%clk 0:01:19.4]} 28... Nxd3 {[%clk 0:00:08.5]} 29.
cxd3 {[%clk 0:01:19.6]} 29... f6 {[%clk 0:00:07.4]} 30. Nxe6 {[%clk 0:01:16.7]}
30... Qxe5 {[%clk 0:00:07.7]} 31. Rxg7+ {[%clk 0:01:16.1]} 1-0

[Event "*** SCC Grand Prix: Titled Tuesday Blitz"]
[Site "Chess.com"]
[Date "2020.07.21"]
[Round "9"]
[White "BikingBrian"]
[Black "HouseOfDurin"]
[Result "1-0"]
[WhiteElo "2219"]
[BlackElo "2064"]
[TimeControl "180+1"]
[EndTime "11:47:25 PDT"]
[Termination "BikingBrian won on time"]

1. d4 {[%clk 0:03:00.9]} 1... Nf6 {[%clk 0:02:58.8]} 2. Bg5 {[%clk 0:03:00.1]}
2... Ne4 {[%clk 0:02:57.7]} 3. Bf4 {[%clk 0:03:00.2]} 3... d5 {[%clk 0:02:58.2]}
4. f3 {[%clk 0:03:00.7]} 4... Nf6 {[%clk 0:02:57.2]} 5. e4 {[%clk 0:03:01.1]}
5... dxe4 {[%clk 0:02:56.6]} 6. Nc3 {[%clk 0:03:01.7]} 6... exf3 {[%clk
0:02:54.4]} 7. Nxf3 {[%clk 0:03:02.6]} 7... e6 {[%clk 0:02:51.6]} 8. Bc4 {[%clk
0:03:01.5]} 8... Bd6 {[%clk 0:02:48.6]} 9. Bg5 {[%clk 0:02:52.9]} 9... h6 {[%clk
0:02:47.5]} 10. Bh4 {[%clk 0:02:52.6]} 10... g5 {[%clk 0:02:47.2]} 11. Bf2
{[%clk 0:02:50.1]} 11... Ng4 {[%clk 0:02:38.2]} 12. O-O {[%clk 0:02:39]} 12...
O-O {[%clk 0:02:25.5]} 13. Ne4 {[%clk 0:02:34.1]} 13... Nxf2 {[%clk 0:02:16.7]}
14. Rxf2 {[%clk 0:02:30.9]} 14... Bf4 {[%clk 0:02:17.1]} 15. Re2 {[%clk
0:02:17.2]} 15... a6 {[%clk 0:01:56.9]} 16. g3 {[%clk 0:02:17.1]} 16... Bd6
{[%clk 0:01:56]} 17. Bd3 {[%clk 0:02:08.8]} 17... b5 {[%clk 0:01:51.9]} 18. c3
{[%clk 0:02:08.1]} 18... Bb7 {[%clk 0:01:51.4]} 19. Rf2 {[%clk 0:02:01.6]} 19...
f5 {[%clk 0:01:46.2]} 20. Nxd6 {[%clk 0:01:56.3]} 20... cxd6 {[%clk 0:01:43.7]}
21. Qe2 {[%clk 0:01:51.5]} 21... Bd5 {[%clk 0:01:36.1]} 22. c4 {[%clk
0:01:45.1]} 22... bxc4 {[%clk 0:01:35.5]} 23. Bxc4 {[%clk 0:01:46]} 23... Bxc4
{[%clk 0:01:33]} 24. Qxc4 {[%clk 0:01:45.9]} 24... Qd7 {[%clk 0:01:20.8]} 25.
Re1 {[%clk 0:01:45.4]} 25... d5 {[%clk 0:01:12.5]} 26. Qe2 {[%clk 0:01:38.7]}
26... Rf6 {[%clk 0:00:59.3]} 27. Ne5 {[%clk 0:01:37.1]} 27... Qb5 {[%clk
0:00:57.5]} 28. Qh5 {[%clk 0:01:30.2]} 28... Kg7 {[%clk 0:00:57.4]} 29. h4
{[%clk 0:01:24]} 29... gxh4 {[%clk 0:00:22.4]} 30. g4 {[%clk 0:01:23.9]} 30...
Nc6 {[%clk 0:00:14.7]} 31. g5 {[%clk 0:01:21.5]} 31... Rg8 {[%clk 0:00:04.9]}
32. Kh1 {[%clk 0:01:10]} 1-0

[Event "*** SCC Grand Prix: Titled Tuesday Blitz"]
[Site "Chess.com"]
[Date "2020.07.21"]
[Round "9"]
[White "boasovietica"]
[Black "Shubinkirill2003"]
[Result "0-1"]
[WhiteElo "2413"]
[BlackElo "2636"]
[TimeControl "180+1"]
[EndTime "11:47:28 PDT"]
[Termination "Shubinkirill2003 won on time"]

1. e4 {[%clk 0:03:00.9]} 1... e6 {[%clk 0:02:58.3]} 2. d4 {[%clk 0:03:00.5]}
2... d5 {[%clk 0:02:58.8]} 3. Nd2 {[%clk 0:03:00.4]} 3... Be7 {[%clk 0:02:58.6]}
4. Ngf3 {[%clk 0:02:59.2]} 4... Nf6 {[%clk 0:02:58.3]} 5. Bd3 {[%clk 0:02:53.9]}
5... c5 {[%clk 0:02:57.8]} 6. dxc5 {[%clk 0:02:54.2]} 6... O-O {[%clk
0:02:55.5]} 7. Qe2 {[%clk 0:02:51.6]} 7... a5 {[%clk 0:02:55.4]} 8. O-O {[%clk
0:02:50]} 8... Na6 {[%clk 0:02:55]} 9. e5 {[%clk 0:02:40]} 9... Nd7 {[%clk
0:02:54.4]} 10. c3 {[%clk 0:02:40]} 10... Naxc5 {[%clk 0:02:53.6]} 11. Bc2
{[%clk 0:02:39.6]} 11... b5 {[%clk 0:02:54.1]} 12. Nb3 {[%clk 0:02:37.4]} 12...
b4 {[%clk 0:02:44]} 13. Re1 {[%clk 0:02:33.5]} 13... Ba6 {[%clk 0:02:39.5]} 14.
Qd1 {[%clk 0:02:24.3]} 14... bxc3 {[%clk 0:02:38.1]} 15. bxc3 {[%clk 0:02:24.3]}
15... Qc7 {[%clk 0:02:35.8]} 16. Nbd4 {[%clk 0:02:21.6]} 16... Rfc8 {[%clk
0:02:28.5]} 17. Bf4 {[%clk 0:02:08.7]} 17... Nf8 {[%clk 0:02:26.9]} 18. h4
{[%clk 0:02:03.8]} 18... Ne4 {[%clk 0:02:24.6]} 19. Rc1 {[%clk 0:01:41.4]} 19...
Nxc3 {[%clk 0:02:19.8]} 20. Qd2 {[%clk 0:01:39]} 20... Bb4 {[%clk 0:02:17.8]}
21. Qe3 {[%clk 0:01:21.1]} 21... Ng6 {[%clk 0:02:10]} 22. h5 {[%clk 0:01:09.2]}
22... Nxf4 {[%clk 0:02:09.5]} 23. Qxf4 {[%clk 0:01:09.6]} 23... h6 {[%clk
0:02:09.4]} 24. g4 {[%clk 0:01:01.9]} 24... Ba3 {[%clk 0:01:45.8]} 25. Ra1
{[%clk 0:00:38]} 25... Ne2+ {[%clk 0:01:31.4]} 26. Rxe2 {[%clk 0:00:21.3]} 26...
Bxe2 {[%clk 0:01:30.5]} 27. g5 {[%clk 0:00:21.7]} 27... Bxf3 {[%clk 0:01:25.9]}
28. Qxf3 {[%clk 0:00:20.4]} 28... Qxe5 {[%clk 0:01:22.1]} 29. Rd1 {[%clk
0:00:11.8]} 29... Qxg5+ {[%clk 0:01:19.8]} 30. Kh1 {[%clk 0:00:10.2]} 30... Bc5
{[%clk 0:01:18.9]} 31. Ne2 {[%clk 0:00:06]} 31... Qh4+ {[%clk 0:01:16.6]} 32.
Kg2 {[%clk 0:00:06]} 32... Qxf2+ {[%clk 0:01:16.2]} 33. Qxf2 {[%clk 0:00:03.8]}
33... Bxf2 {[%clk 0:01:17.1]} 0-1

[Event "*** SCC Grand Prix: Titled Tuesday Blitz"]
[Site "Chess.com"]
[Date "2020.07.21"]
[Round "9"]
[White "jacky72"]
[Black "MFguimaraes"]
[Result "1-0"]
[WhiteElo "2631"]
[BlackElo "2412"]
[TimeControl "180+1"]
[EndTime "11:47:32 PDT"]
[Termination "jacky72 won by resignation"]

1. d4 {[%clk 0:03:00.9]} 1... Nf6 {[%clk 0:02:50.3]} 2. c4 {[%clk 0:02:59.7]}
2... c6 {[%clk 0:02:50]} 3. Nc3 {[%clk 0:02:59.3]} 3... d5 {[%clk 0:02:50.9]} 4.
Nf3 {[%clk 0:03:00]} 4... a6 {[%clk 0:02:50.7]} 5. cxd5 {[%clk 0:02:59.6]} 5...
cxd5 {[%clk 0:02:50.9]} 6. Bf4 {[%clk 0:03:00]} 6... Nc6 {[%clk 0:02:51.4]} 7.
e3 {[%clk 0:03:00.1]} 7... Bf5 {[%clk 0:02:51.4]} 8. Rc1 {[%clk 0:02:57.5]} 8...
e6 {[%clk 0:02:51]} 9. Ne5 {[%clk 0:02:57.1]} 9... Bd6 {[%clk 0:02:49.2]} 10.
Bd3 {[%clk 0:02:50.7]} 10... Bxd3 {[%clk 0:02:47.8]} 11. Qxd3 {[%clk 0:02:49]}
11... Bxe5 {[%clk 0:02:37.4]} 12. Bxe5 {[%clk 0:02:48.5]} 12... Nxe5 {[%clk
0:02:37.2]} 13. dxe5 {[%clk 0:02:49.4]} 13... Nd7 {[%clk 0:02:37.4]} 14. f4
{[%clk 0:02:49.1]} 14... O-O {[%clk 0:02:31.3]} 15. O-O {[%clk 0:02:49]} 15...
f6 {[%clk 0:02:31.1]} 16. exf6 {[%clk 0:02:47.2]} 16... Qxf6 {[%clk 0:02:27.2]}
17. e4 {[%clk 0:02:34.9]} 17... Nc5 {[%clk 0:02:26.5]} 18. Qe2 {[%clk
0:02:35.1]} 18... d4 {[%clk 0:02:14.6]} 19. Nd5 {[%clk 0:02:34.6]} 19... exd5
{[%clk 0:02:10.6]} 20. Rxc5 {[%clk 0:02:34]} 20... dxe4 {[%clk 0:02:10.1]} 21.
Qxe4 {[%clk 0:02:31.8]} 21... Rae8 {[%clk 0:02:09]} 22. Qxb7 {[%clk 0:02:19.5]}
22... Re2 {[%clk 0:01:50.1]} 23. Rc6 {[%clk 0:02:09.4]} 23... Qf5 {[%clk
0:01:43.3]} 24. Qb3+ {[%clk 0:01:56.5]} 24... Kh8 {[%clk 0:01:39.6]} 25. Rd6
{[%clk 0:01:45.5]} 25... Qe4 {[%clk 0:01:20]} 26. Qf3 {[%clk 0:01:42.4]} 26...
Qxf3 {[%clk 0:01:09.7]} 27. Rxf3 {[%clk 0:01:40.9]} 27... Rxb2 {[%clk
0:01:09.6]} 28. Rxa6 {[%clk 0:01:41.3]} 28... Rd8 {[%clk 0:01:07.4]} 29. Rd3
{[%clk 0:01:39.5]} 29... h6 {[%clk 0:01:06.8]} 30. Ra4 {[%clk 0:01:35.1]} 30...
Rc8 {[%clk 0:01:03.6]} 31. h3 {[%clk 0:01:27.2]} 31... Rcc2 {[%clk 0:01:01.6]}
32. Rg3 {[%clk 0:01:27.2]} 32... d3 {[%clk 0:00:53.3]} 33. Ra8+ {[%clk
0:01:23.5]} 33... Kh7 {[%clk 0:00:52.6]} 34. Ra7 {[%clk 0:01:24.4]} 34... h5
{[%clk 0:00:39.2]} 35. Raxg7+ {[%clk 0:01:09.3]} 35... Kh8 {[%clk 0:00:38.6]}
36. R7g5 {[%clk 0:01:07.3]} 1-0

[Event "*** SCC Grand Prix: Titled Tuesday Blitz"]
[Site "Chess.com"]
[Date "2020.07.21"]
[Round "9"]
[White "MasterKroket"]
[Black "chargemax23"]
[Result "0-1"]
[WhiteElo "2407"]
[BlackElo "2603"]
[TimeControl "180+1"]
[EndTime "11:47:35 PDT"]
[Termination "chargemax23 won by checkmate"]

1. d4 {[%clk 0:03:00.9]} 1... Nf6 {[%clk 0:02:59.5]} 2. c4 {[%clk 0:03:01.4]}
2... d6 {[%clk 0:02:59.6]} 3. Nc3 {[%clk 0:03:00.7]} 3... Bf5 {[%clk 0:02:59.3]}
4. Bg5 {[%clk 0:02:55.3]} 4... Nbd7 {[%clk 0:02:58.3]} 5. e3 {[%clk 0:02:55.3]}
5... h6 {[%clk 0:02:57.8]} 6. Bh4 {[%clk 0:02:54.5]} 6... e5 {[%clk 0:02:57.6]}
7. Nf3 {[%clk 0:02:46.4]} 7... c6 {[%clk 0:02:56.7]} 8. Be2 {[%clk 0:02:45.7]}
8... Be7 {[%clk 0:02:56]} 9. O-O {[%clk 0:02:44.8]} 9... O-O {[%clk 0:02:55.5]}
10. b4 {[%clk 0:02:28.4]} 10... Re8 {[%clk 0:02:53.4]} 11. Qb3 {[%clk
0:02:26.4]} 11... Bf8 {[%clk 0:02:52.1]} 12. Rfd1 {[%clk 0:02:21.1]} 12... e4
{[%clk 0:02:38.1]} 13. Nd2 {[%clk 0:02:21.1]} 13... g5 {[%clk 0:02:36.2]} 14.
Bg3 {[%clk 0:02:21]} 14... Bg6 {[%clk 0:02:27.4]} 15. b5 {[%clk 0:02:16.6]}
15... c5 {[%clk 0:02:18.5]} 16. dxc5 {[%clk 0:02:15.8]} 16... Nxc5 {[%clk
0:02:17.8]} 17. Qc2 {[%clk 0:02:14.8]} 17... h5 {[%clk 0:02:13.8]} 18. h4 {[%clk
0:02:13.3]} 18... Ng4 {[%clk 0:02:08]} 19. hxg5 {[%clk 0:02:06.4]} 19... Qxg5
{[%clk 0:02:07.4]} 20. Bf4 {[%clk 0:02:06.8]} 20... Qf5 {[%clk 0:01:56.9]} 21.
Nf1 {[%clk 0:02:04.5]} 21... Nd3 {[%clk 0:01:53.7]} 22. Ng3 {[%clk 0:02:03.2]}
22... Qe6 {[%clk 0:01:44.2]} 23. Nd5 {[%clk 0:02:01.5]} 23... Rac8 {[%clk
0:01:33.2]} 24. Bg5 {[%clk 0:01:56.3]} 24... Bg7 {[%clk 0:01:30.5]} 25. Nf4
{[%clk 0:01:35]} 25... Nxf4 {[%clk 0:01:18]} 26. Bxf4 {[%clk 0:01:34.9]} 26...
Bxa1 {[%clk 0:01:18]} 27. Rxa1 {[%clk 0:01:35.8]} 27... d5 {[%clk 0:01:08.9]}
28. c5 {[%clk 0:01:33.7]} 28... d4 {[%clk 0:01:05.9]} 29. exd4 {[%clk
0:01:26.7]} 29... e3 {[%clk 0:01:05.2]} 30. Qc3 {[%clk 0:01:15.2]} 30... exf2+
{[%clk 0:01:04.2]} 31. Kf1 {[%clk 0:01:15.8]} 31... h4 {[%clk 0:00:56.3]} 32.
Bc4 {[%clk 0:01:12.5]} 32... Qf6 {[%clk 0:00:49.9]} 33. Ne2 {[%clk 0:01:04]}
33... Rxe2 {[%clk 0:00:46]} 34. Bxe2 {[%clk 0:00:56.1]} 34... Qxf4 {[%clk
0:00:46]} 35. Bf3 {[%clk 0:00:49.2]} 35... Qg3 {[%clk 0:00:42.3]} 36. c6 {[%clk
0:00:41.7]} 36... Re8 {[%clk 0:00:40]} 37. cxb7 {[%clk 0:00:39.2]} 37... Nh2#
{[%clk 0:00:39.7]} 0-1

[Event "*** SCC Grand Prix: Titled Tuesday Blitz"]
[Site "Chess.com"]
[Date "2020.07.21"]
[Round "9"]
[White "JiiHart"]
[Black "Vision_64"]
[Result "0-1"]
[WhiteElo "2085"]
[BlackElo "2212"]
[TimeControl "180+1"]
[EndTime "11:47:39 PDT"]
[Termination "Vision_64 won by checkmate"]

1. e4 {[%clk 0:03:00.9]} 1... c5 {[%clk 0:02:57.7]} 2. Nf3 {[%clk 0:03:01]} 2...
Nc6 {[%clk 0:02:58]} 3. d4 {[%clk 0:03:01.2]} 3... cxd4 {[%clk 0:02:58.9]} 4.
Nxd4 {[%clk 0:03:01.3]} 4... Nf6 {[%clk 0:02:58.7]} 5. Nc3 {[%clk 0:03:01.5]}
5... e5 {[%clk 0:02:58.6]} 6. Ndb5 {[%clk 0:03:01.1]} 6... d6 {[%clk 0:02:58.8]}
7. Bg5 {[%clk 0:03:00.4]} 7... a6 {[%clk 0:02:59.3]} 8. Bxf6 {[%clk 0:03:00.7]}
8... gxf6 {[%clk 0:02:54.9]} 9. Na3 {[%clk 0:03:00.6]} 9... b5 {[%clk
0:02:54.1]} 10. Nd5 {[%clk 0:03:00.9]} 10... f5 {[%clk 0:02:53]} 11. Bd3 {[%clk
0:03:01]} 11... Be6 {[%clk 0:02:36.1]} 12. Qh5 {[%clk 0:03:00.3]} 12... Bg7
{[%clk 0:02:23.7]} 13. O-O-O {[%clk 0:02:59]} 13... Rc8 {[%clk 0:02:13.9]} 14.
h4 {[%clk 0:02:42.9]} 14... Bxd5 {[%clk 0:01:52.8]} 15. exd5 {[%clk 0:02:41.4]}
15... Nd4 {[%clk 0:01:53]} 16. Bxf5 {[%clk 0:02:27.1]} 16... Rc5 {[%clk
0:01:22.5]} 17. Rhe1 {[%clk 0:01:32.4]} 17... Kf8 {[%clk 0:01:04.1]} 18. Be4
{[%clk 0:01:03.6]} 18... Qf6 {[%clk 0:00:57]} 19. g3 {[%clk 0:00:23.6]} 19...
Bh6+ {[%clk 0:00:47.4]} 20. Kb1 {[%clk 0:00:18.5]} 20... b4 {[%clk 0:00:47]} 21.
c3 {[%clk 0:00:14.2]} 21... bxa3 {[%clk 0:00:45.4]} 22. cxd4 {[%clk 0:00:14.4]}
22... Rb5 {[%clk 0:00:37.4]} 23. b3 {[%clk 0:00:13.7]} 23... Qxf2 {[%clk
0:00:31.6]} 24. Rf1 {[%clk 0:00:11.3]} 24... Qb2# {[%clk 0:00:31.2]} 0-1

[Event "*** SCC Grand Prix: Titled Tuesday Blitz"]
[Site "Chess.com"]
[Date "2020.07.21"]
[Round "9"]
[White "Sibelephant"]
[Black "Dedic8"]
[Result "1-0"]
[WhiteElo "3098"]
[BlackElo "2795"]
[TimeControl "180+1"]
[EndTime "11:47:42 PDT"]
[Termination "Sibelephant won by resignation"]

1. c4 {[%clk 0:03:00]} 1... e5 {[%clk 0:02:59.9]} 2. d3 {[%clk 0:03:00.5]} 2...
Nf6 {[%clk 0:02:59.8]} 3. Nf3 {[%clk 0:03:00.8]} 3... Nc6 {[%clk 0:02:59.9]} 4.
g3 {[%clk 0:03:01.2]} 4... d5 {[%clk 0:03:00.3]} 5. cxd5 {[%clk 0:03:01.5]} 5...
Nxd5 {[%clk 0:03:00.8]} 6. Bg2 {[%clk 0:03:01.8]} 6... Be7 {[%clk 0:03:00.9]} 7.
O-O {[%clk 0:03:02]} 7... O-O {[%clk 0:03:00.9]} 8. Nc3 {[%clk 0:03:02.2]} 8...
Nb6 {[%clk 0:03:01.3]} 9. Be3 {[%clk 0:02:59.2]} 9... Re8 {[%clk 0:03:00.6]} 10.
Rc1 {[%clk 0:02:58.3]} 10... Bf8 {[%clk 0:03:00.8]} 11. a3 {[%clk 0:02:48.8]}
11... Nd4 {[%clk 0:02:34.7]} 12. Bxd4 {[%clk 0:02:48.5]} 12... exd4 {[%clk
0:02:35.6]} 13. Nb5 {[%clk 0:02:48.9]} 13... c5 {[%clk 0:02:35.9]} 14. b4 {[%clk
0:02:49.2]} 14... cxb4 {[%clk 0:02:31.7]} 15. axb4 {[%clk 0:02:43.6]} 15... Nd5
{[%clk 0:02:04.5]} 16. Nfxd4 {[%clk 0:02:43.4]} 16... a6 {[%clk 0:01:53.6]} 17.
Qb3 {[%clk 0:02:04.6]} 17... Nf6 {[%clk 0:01:23.6]} 18. Nc7 {[%clk 0:02:02.8]}
18... Qxd4 {[%clk 0:01:23.5]} 19. Rc4 {[%clk 0:01:10]} 19... Qd8 {[%clk
0:01:18.1]} 20. Nxa8 {[%clk 0:01:06.3]} 20... Be6 {[%clk 0:00:57.6]} 21. Bxb7
{[%clk 0:01:05.8]} 21... Qb8 {[%clk 0:00:51.9]} 22. Bf3 {[%clk 0:00:46.8]} 22...
Nd5 {[%clk 0:00:28.5]} 23. Bxd5 {[%clk 0:00:46.6]} 23... Bxd5 {[%clk 0:00:28.6]}
24. Nc7 {[%clk 0:00:47.1]} 24... Bxc4 {[%clk 0:00:15.4]} 25. Qxc4 {[%clk
0:00:46.8]} 25... Rc8 {[%clk 0:00:15.7]} 26. Nxa6 {[%clk 0:00:46.8]} 1-0

[Event "*** SCC Grand Prix: Titled Tuesday Blitz"]
[Site "Chess.com"]
[Date "2020.07.21"]
[Round "9"]
[White "RodinMihail"]
[Black "Alopekos"]
[Result "1-0"]
[WhiteElo "2485"]
[BlackElo "2365"]
[TimeControl "180+1"]
[EndTime "11:47:43 PDT"]
[Termination "RodinMihail won on time"]

1. e4 {[%clk 0:03:00.9]} 1... c5 {[%clk 0:02:58.8]} 2. Nf3 {[%clk 0:03:01.1]}
2... e6 {[%clk 0:02:58.7]} 3. d4 {[%clk 0:03:01.4]} 3... cxd4 {[%clk 0:02:58.8]}
4. Nxd4 {[%clk 0:03:02.3]} 4... Nc6 {[%clk 0:02:59.4]} 5. Nb5 {[%clk 0:03:01.8]}
5... d6 {[%clk 0:02:51.1]} 6. Bf4 {[%clk 0:03:01.5]} 6... e5 {[%clk 0:02:48.8]}
7. Be3 {[%clk 0:03:02]} 7... Nf6 {[%clk 0:02:41]} 8. Bg5 {[%clk 0:03:01.4]} 8...
a6 {[%clk 0:02:38.3]} 9. Bxf6 {[%clk 0:03:00.6]} 9... gxf6 {[%clk 0:02:38.8]}
10. N5c3 {[%clk 0:03:01.1]} 10... f5 {[%clk 0:02:33.8]} 11. Bc4 {[%clk
0:03:00.6]} 11... Qg5 {[%clk 0:02:03.8]} 12. O-O {[%clk 0:02:59.8]} 12... Rg8
{[%clk 0:01:43]} 13. g3 {[%clk 0:02:59.5]} 13... f4 {[%clk 0:01:43.4]} 14. Nd5
{[%clk 0:02:51.2]} 14... Bg4 {[%clk 0:01:16.8]} 15. Qxg4 {[%clk 0:02:50]} 15...
Qxg4 {[%clk 0:01:17.7]} 16. Nf6+ {[%clk 0:02:49.7]} 16... Kd8 {[%clk 0:01:00.3]}
17. Nxg4 {[%clk 0:02:48]} 17... Rxg4 {[%clk 0:01:01.2]} 18. Nc3 {[%clk
0:02:32.2]} 18... Nd4 {[%clk 0:00:56.1]} 19. Rac1 {[%clk 0:02:10.3]} 19... b5
{[%clk 0:00:52.3]} 20. Bd3 {[%clk 0:02:03.5]} 20... Bh6 {[%clk 0:00:51.8]} 21.
f3 {[%clk 0:02:00.7]} 21... Rg8 {[%clk 0:00:37.7]} 22. g4 {[%clk 0:02:00.9]}
22... Bg5 {[%clk 0:00:15.4]} 23. a4 {[%clk 0:01:59.9]} 23... Rb8 {[%clk
0:00:06.9]} 24. axb5 {[%clk 0:01:58.1]} 24... axb5 {[%clk 0:00:07.8]} 25. Nd5
{[%clk 0:01:57.1]} 25... h5 {[%clk 0:00:07.3]} 26. h3 {[%clk 0:01:56.3]} 26...
Kd7 {[%clk 0:00:04.5]} 27. c3 {[%clk 0:01:55.5]} 27... Ne6 {[%clk 0:00:03.9]}
28. Ra1 {[%clk 0:01:51.9]} 28... Rb7 {[%clk 0:00:04.2]} 29. Ra5 {[%clk
0:01:48.3]} 29... hxg4 {[%clk 0:00:04.3]} 30. hxg4 {[%clk 0:01:44.3]} 30... Rgb8
{[%clk 0:00:03]} 31. Kf2 {[%clk 0:01:42]} 31... Bd8 {[%clk 0:00:03.5]} 32. Ra2
{[%clk 0:01:33.7]} 32... Nc7 {[%clk 0:00:02.5]} 33. Nb4 {[%clk 0:01:30]} 33...
Ne6 {[%clk 0:00:01.9]} 34. Rh1 {[%clk 0:01:29.3]} 34... Bb6+ {[%clk 0:00:02.1]}
35. Ke2 {[%clk 0:01:28.4]} 35... Bc5 {[%clk 0:00:02.5]} 36. Na6 {[%clk
0:01:25.9]} 36... Rg8 {[%clk 0:00:01.6]} 37. Rh7 {[%clk 0:01:23.3]} 37... Ke7
{[%clk 0:00:01.6]} 38. b4 {[%clk 0:01:11.5]} 1-0

[Event "*** SCC Grand Prix: Titled Tuesday Blitz"]
[Site "Chess.com"]
[Date "2020.07.21"]
[Round "9"]
[White "Alindsay211"]
[Black "VladaSviridova"]
[Result "0-1"]
[WhiteElo "2261"]
[BlackElo "2136"]
[TimeControl "180+1"]
[EndTime "11:47:49 PDT"]
[Termination "VladaSviridova won on time"]

1. d4 {[%clk 0:03:00.9]} 1... d5 {[%clk 0:02:59.9]} 2. Nf3 {[%clk 0:03:01.2]}
2... Nf6 {[%clk 0:02:59.4]} 3. Bf4 {[%clk 0:03:01.3]} 3... c5 {[%clk 0:02:58.6]}
4. c3 {[%clk 0:03:01.3]} 4... Nc6 {[%clk 0:02:58.8]} 5. e3 {[%clk 0:03:01]} 5...
e6 {[%clk 0:02:59.1]} 6. Nbd2 {[%clk 0:02:59.7]} 6... Bd6 {[%clk 0:02:58.5]} 7.
Bg5 {[%clk 0:02:59.5]} 7... Be7 {[%clk 0:02:58]} 8. Bd3 {[%clk 0:02:58.1]} 8...
O-O {[%clk 0:02:57.2]} 9. Rc1 {[%clk 0:02:56.6]} 9... h6 {[%clk 0:02:57.2]} 10.
Bh4 {[%clk 0:02:56.4]} 10... b6 {[%clk 0:02:55.9]} 11. O-O {[%clk 0:02:52.6]}
11... Bb7 {[%clk 0:02:55.9]} 12. Qa4 {[%clk 0:02:45.7]} 12... a6 {[%clk
0:02:32.2]} 13. Bb1 {[%clk 0:02:43.6]} 13... cxd4 {[%clk 0:02:21]} 14. exd4
{[%clk 0:02:32.1]} 14... Rc8 {[%clk 0:02:16.6]} 15. Qd1 {[%clk 0:02:04.4]} 15...
Ne4 {[%clk 0:02:03.8]} 16. Bxe7 {[%clk 0:02:01.7]} 16... Nxe7 {[%clk 0:02:02.1]}
17. Re1 {[%clk 0:01:36.8]} 17... f5 {[%clk 0:01:50.7]} 18. Ne5 {[%clk
0:01:33.4]} 18... Nc6 {[%clk 0:01:45.7]} 19. Ndf3 {[%clk 0:01:28.4]} 19... Nxe5
{[%clk 0:01:40.5]} 20. Nxe5 {[%clk 0:01:28]} 20... Qg5 {[%clk 0:01:33.8]} 21.
Nd7 {[%clk 0:00:44.9]} 21... Rf7 {[%clk 0:01:31]} 22. Nxb6 {[%clk 0:00:23.1]}
22... Rc6 {[%clk 0:01:31]} 23. Na4 {[%clk 0:00:21.6]} 23... Rf6 {[%clk
0:01:11.1]} 24. Bxe4 {[%clk 0:00:20.1]} 24... fxe4 {[%clk 0:01:06]} 25. Nc5
{[%clk 0:00:19.8]} 25... Bc8 {[%clk 0:01:03.8]} 26. g3 {[%clk 0:00:17.2]} 26...
e5 {[%clk 0:00:59.5]} 27. Re3 {[%clk 0:00:04.9]} 27... Bg4 {[%clk 0:00:56.6]}
28. Qe1 {[%clk 0:00:02.2]} 28... Bf3 {[%clk 0:00:54.9]} 29. Rxf3 {[%clk
0:00:01.5]} 29... Rxf3 {[%clk 0:00:53.1]} 30. dxe5 {[%clk 0:00:02.4]} 30... Qxe5
{[%clk 0:00:52.4]} 31. Nd7 {[%clk 0:00:01.6]} 31... Qe7 {[%clk 0:00:51.1]} 32.
Nb8 {[%clk 0:00:01.1]} 32... Rb6 {[%clk 0:00:50.5]} 0-1